bitfinex/quotes_ETHUSD_20241129
["timestamp","ask_amount","ask_price","bid_price","bid_amount"]
[1732896526903,2.76578,3615.7,3615.3,5.0]
[1732896527396,2.76579,3615.6,3615.3,5.0]
[1732896527583,2.76565,3615.8,3615.3,5.0]
[1732896528096,2.76565,3615.8,3615.3,7.76601]
[1732896528391,2.76551,3616.0,3615.4,0.849]
[1732896528611,2.76534,3616.2,3615.4,3.61493]
[1732896528783,0.7678,3616.3,3615.4,1.1251]
[1732896528975,2.76564,3615.8,3615.4,1.1251]
[1732896529206,2.76554,3616.0,3615.4,1.1251]
[1732896529371,2.76554,3616.0,3615.4,3.89104]
[1732896529766,2.76541,3616.1,3615.4,1.1251]
[1732896530006,2.76565,3615.8,3615.4,1.1251]
[1732896530211,2.76554,3616.0,3615.4,1.1251]
[1732896530702,2.76533,3616.2,3615.5,2.79346582]
[1732896530864,2.76533,3616.2,3615.5,2.76581]
[1732896531518,5.76502,3616.6,3615.4,1.76647727]
[1732896531809,2.76546,3616.1,3615.4,4.53241727]
[1732896532177,2.76546,3616.1,3615.5,2.76583]
[1732896532367,2.76536,3616.2,3615.5,1.22982473]
[1732896532568,2.76541,3616.1,3615.6,0.2761]
[1732896532767,2.76549,3616.0,3615.6,0.2761]
[1732896533004,2.76557,3615.9,3615.6,0.2761]
[1732896533373,2.76541,3616.1,3615.6,0.2761]
[1732896533374,2.76554,3616.0,3615.6,0.2761]
[1732896535021,2.76507,3616.6,3615.6,0.2761]
[1732896535320,0.8328,3616.7,3616.0,2.76548]
[1732896535321,2.76516,3616.5,3616.0,2.76548]
[1732896535483,2.76516,3616.5,3616.1,0.7756]
[1732896535690,2.76523,3616.4,3616.1,0.7756]
[1732896537320,2.76503,3616.6,3616.1,0.7756]
[1732896537523,2.7649,3616.8,3616.1,0.7756]
[1732896537739,2.76466,3617.1,3616.3,2.76523]
[1732896537940,2.76503,3616.6,3616.4,0.354083]
[1732896538090,2.76449,3617.3,3616.1,0.7756]
[1732896538091,2.76519,3616.4,3616.1,0.7756]
[1732896538603,2.76497,3616.7,3616.1,0.7756]
[1732896538809,2.7651,3616.5,3616.1,0.7756]
[1732896539319,2.76497,3616.7,3616.1,3.922694]
[1732896540394,2.76479,3616.9,3616.3,2.76524]
[1732896540694,1.70047752,3617.2,3616.1,3.922694]
[1732896540695,3.90365874,3617.2,3616.4,0.02764939]
[1732896541065,3.90364874,3617.2,3616.8,0.8131]
[1732896541192,2.76465,3617.1,3616.8,0.8131]
[1732896541393,2.76499,3616.7,3616.4,0.8346]
[1732896541637,2.7651,3616.5,3616.4,0.8346]
[1732896541803,2.7651,3616.5,3616.1,1.492424]
[1732896542143,2.7651,3616.5,3616.1,1.1107]
[1732896543707,2.76527,3616.3,3616.1,1.1107]
[1732896544116,2.76533,3616.2,3616.1,1.1107]
[1732896544318,2.76577,3615.7,3615.4,0.7813]
[1732896544609,2.76594,3615.4,3615.1,0.7813]
[1732896544865,2.76585,3615.6,3615.1,0.7813]
[1732896545061,0.7678,3616.4,3615.1,0.7813]
[1732896545262,2.76594,3615.4,3615.1,0.7813]
[1732896545862,0.7678,3616.4,3615.1,0.7813]
[1732896545863,2.76577,3615.7,3615.1,0.7813]
[1732896546243,2.76577,3615.7,3615.1,3.82386]
[1732896546453,2.76557,3615.9,3615.1,3.82386]
[1732896546681,2.76557,3615.9,3615.4,0.02765728]
[1732896546857,2.76557,3615.9,3615.5,0.50276573]
[1732896547844,2.76577,3615.7,3615.5,0.50276573]
[1732896548044,2.76577,3615.7,3615.3,5.0]
[1732896548045,2.76579,3615.6,3615.3,5.0]
[1732896548346,2.76594,3615.4,3615.3,5.0]
[1732896550688,2.76554,3616.0,3615.3,5.0]
[1732896550842,3.0,3616.4,3615.3,5.0]
[1732896551043,2.7654,3616.2,3615.5,3.56444]
[1732896551243,2.76518,3616.4,3615.6,2.76573]
[1732896551457,0.767,3616.7,3615.5,0.7986]
[1732896551748,0.767,3616.7,3615.6,2.76571]
[1732896551749,2.76536,3616.2,3615.6,2.76571]
[1732896552182,2.76518,3616.4,3615.7,2.76568]
[1732896552346,0.7924,3617.0,3615.8,0.632999]
[1732896552549,2.7653,3616.3,3615.6,0.55]
[1732896552748,0.7924,3617.0,3615.6,0.8264]
[1732896552988,2.7655,3616.0,3615.6,0.2764]
[1732896553283,2.76533,3616.2,3615.6,0.2764]
[1732896553486,2.76533,3616.2,3615.7,0.444669]
[1732896553804,2.76542,3616.1,3615.6,0.2764]
[1732896554151,2.7657,3615.8,3615.6,0.2764]
[1732896554376,2.7655,3616.0,3615.6,0.2764]
[1732896555793,2.76548,3616.0,3615.6,0.2764]
[1732896556095,2.76546,3616.1,3615.6,0.2764]
[1732896556285,2.76546,3616.1,3615.7,0.444663]
[1732896557062,2.7655,3616.0,3615.8,0.2764]
[1732896557964,2.76535,3616.2,3615.8,0.2764]
[1732896558166,2.76548,3616.1,3615.6,0.2764]
[1732896558477,2.76553,3616.0,3615.6,0.2764]
[1732896558674,2.76538,3616.2,3615.6,1.221077]
[1732896558873,2.76537,3616.2,3615.6,1.221077]
[1732896559278,2.76543,3616.1,3615.7,0.2764]
[1732896559895,2.76533,3616.2,3615.7,0.2764]
[1732896560099,1.14266135,3617.0,3615.9,0.55]
[1732896560301,2.76482,3616.9,3616.2,2.76527]
[1732896560522,2.76482,3616.9,3616.0,3.57084]
[1732896560523,1.14266135,3617.2,3616.0,0.8054]
[1732896560725,2.76511,3616.5,3616.1,0.2764]
[1732896561001,2.76518,3616.4,3616.1,0.2764]
[1732896561199,2.76571,3615.7,3615.6,0.7971]
[1732896561412,2.76564,3615.8,3615.6,0.7971]
[1732896561703,2.76571,3615.7,3615.2,0.8011]
[1732896561903,2.76591,3615.5,3615.2,0.8011]
[1732896562105,2.76594,3615.4,3615.2,0.8011]
[1732896562815,2.76587,3615.5,3615.2,0.8011]
[1732896564449,1.14266135,3615.8,3615.3,8.37373]
[1732896564610,1.14266135,3616.0,3615.3,8.37373]
[1732896564941,3.90809135,3616.1,3615.4,2.76588]
[1732896565303,2.76543,3616.1,3615.4,2.76588]
[1732896565734,1.14266135,3616.2,3615.7,0.8297]
[1732896565903,1.14266135,3616.2,3615.7,3.954936]
[1732896566305,2.76523,3616.4,3615.8,2.76562]
[1732896566537,2.76496,3616.7,3615.7,1.189246]
[1732896566745,5.52965,3616.9,3616.1,0.7834]
[1732896566900,2.76499,3616.7,3616.1,3.54878]
[1732896567849,2.76506,3616.6,3616.1,0.7834]
[1732896568009,2.76521,3616.4,3616.1,0.7834]
[1732896568340,2.76503,3616.6,3616.1,0.7834]
[1732896569106,2.76503,3616.6,3616.2,0.2764]
[1732896569909,2.76508,3616.6,3616.2,0.2764]
[1732896571525,2.76525,3616.3,3616.2,0.2764]
[1732896571724,2.76545,3616.1,3615.9,0.2764]
[1732896571925,2.76528,3616.3,3615.9,0.2764]
[1732896572236,2.76501,3616.7,3616.1,0.2764]
[1732896572430,2.76498,3616.7,3616.1,3.0418]
[1732896572644,2.76498,3616.7,3616.1,0.2764]
[1732896572866,2.76514,3616.5,3616.1,0.2764]
[1732896573037,5.52998,3616.7,3616.1,0.2764]
[1732896573241,2.76498,3616.7,3616.2,0.580735]
[1732896573442,2.76503,3616.6,3616.2,0.580735]
[1732896573962,2.76492,3616.8,3616.2,0.580735]
[1732896574140,2.76499,3616.7,3616.2,0.580735]
[1732896574464,2.76502,3616.6,3616.2,0.580735]
[1732896575361,2.76477,3617.0,3616.4,0.7936]
[1732896575668,2.76466,3617.1,3616.4,3.83512]
[1732896575973,2.76477,3617.0,3616.4,3.83512]
[1732896576862,1.1449234,3616.7,3616.4,3.83512]
[1732896577067,2.7648,3616.9,3616.4,3.83512]
[1732896577228,1.1449234,3617.0,3616.6,0.2764]
[1732896577768,3.9096434,3617.0,3616.6,0.2764]
[1732896578061,2.76485,3616.9,3616.6,0.2764]
[1732896579058,2.76488,3616.8,3616.6,0.2764]
[1732896579477,3.9096834,3617.0,3616.6,0.2764]
[1732896579874,2.76481,3616.9,3616.6,0.2764]
[1732896580050,2.76488,3616.8,3616.6,0.76577564]
[1732896580387,1.1449234,3617.0,3616.6,0.2764]
[1732896580559,1.1449234,3617.1,3616.6,3.04141]
[1732896580766,1.1449234,3617.2,3616.6,3.04141]
[1732896580945,1.1449234,3617.1,3616.8,0.2764]
[1732896581147,1.1449234,3617.2,3616.8,0.2764]
[1732896581344,1.1449234,3617.1,3616.8,0.2764]
[1732896581651,1.1449234,3617.2,3616.8,0.2764]
[1732896582079,1.1449234,3617.2,3616.7,2.76493]
[1732896582571,2.76461,3617.2,3616.5,3.46131785]
[1732896582885,2.76475,3617.0,3616.5,0.69626785]
[1732896583090,2.76468,3617.1,3616.5,0.69626785]
[1732896583248,2.76466,3617.1,3616.5,3.46135785]
[1732896583887,3.9094334,3617.3,3616.7,2.76494]
[1732896584243,1.1449234,3617.3,3616.7,2.76494]
[1732896584448,4.4817251,3617.5,3616.9,2.76475]
[1732896584449,1.1449234,3617.4,3616.9,2.76475]
[1732896585970,2.76449,3617.3,3616.7,3.46690979]
[1732896586207,3.9092634,3617.5,3616.8,3.11153098]
[1732896586575,2.76434,3617.5,3616.9,0.7825]
[1732896586979,1.1449234,3617.5,3616.9,3.54723]
[1732896587312,3.9091934,3617.6,3616.9,0.7825]
[1732896587470,2.76434,3617.5,3616.9,0.7825]
[1732896587866,3.9091034,3617.7,3617.1,2.76462]
[1732896588081,1.7173851,3617.8,3617.1,2.76462]
[1732896588082,3.9090734,3617.8,3617.1,2.76462]
[1732896588296,3.9090734,3617.8,3617.0,0.02764368]
[1732896588297,1.1449234,3617.8,3617.3,3.57431]
[1732896588503,2.7641,3617.9,3617.3,3.57431]
[1732896589084,2.7641,3617.9,3617.3,0.8099]
[1732896589612,2.76419,3617.7,3617.3,0.8099]
[1732896590077,0.8131,3618.0,3617.3,0.8099]
[1732896590279,2.76426,3617.7,3617.3,0.8099]
[1732896590817,2.76404,3617.9,3617.3,0.8099]
[1732896590818,2.76411,3617.8,3617.3,0.8099]
[1732896591910,2.76385,3618.2,3617.3,1.167346]
[1732896592111,2.76385,3618.2,3617.5,2.76427]
[1732896592574,2.76388,3618.1,3617.5,2.76427]
[1732896592776,2.76407,3617.9,3617.4,0.55]
[1732896593399,3.870086,3618.5,3617.3,0.8099]
[1732896593603,3.870106,3618.5,3617.3,0.8099]
[1732896593804,2.76413,3617.8,3617.3,0.8099]
[1732896594086,2.76413,3617.8,3617.3,1.743808]
[1732896594482,2.7639,3618.1,3617.3,4.508288]
[1732896594696,3.870106,3618.5,3617.3,4.508288]
[1732896595193,2.76412,3617.8,3617.3,4.508288]
[1732896595389,2.76396,3618.0,3617.3,4.508288]
[1732896595611,3.870106,3618.5,3617.3,4.508288]
[1732896595612,2.76403,3617.9,3617.3,4.508288]
[1732896595824,2.76403,3617.9,3617.4,0.7549328]
[1732896596023,2.76411,3617.8,3617.4,0.7549328]
[1732896596719,2.7642,3617.7,3617.4,0.7549328]
[1732896597282,2.76409,3617.9,3617.4,0.7549328]
[1732896597486,2.7637,3618.4,3617.4,0.7549328]
[1732896597487,2.76423,3617.7,3617.4,0.7549328]
[1732896597698,2.76415,3617.8,3617.3,0.8099]
[1732896598431,1.106506,3618.5,3617.3,0.8099]
[1732896598432,2.76365,3618.4,3617.3,0.8099]
[1732896598616,2.76415,3617.8,3617.3,3.57437]
[1732896598935,2.7643,3617.6,3617.4,0.2764]
[1732896599303,2.76415,3617.8,3617.4,0.2764]
[1732896599528,2.76419,3617.7,3617.4,0.68503]
[1732896599693,2.76407,3617.9,3617.4,0.68503]
[1732896599893,2.76412,3617.8,3617.4,0.68503]
[1732896600412,2.76428,3617.6,3617.4,0.68503]
[1732896600619,2.76423,3617.7,3617.4,0.68503]
[1732896600795,2.76423,3617.7,3617.6,0.2764]
[1732896601507,2.76412,3617.8,3617.6,0.2764]
[1732896601709,2.76395,3618.0,3617.6,0.2764]
[1732896602216,2.76415,3617.8,3617.6,0.2764]
[1732896602422,2.76418,3617.7,3617.6,0.2764]
[1732896603304,2.76434,3617.5,3616.1,2.76535]
[1732896603516,2.76472,3617.0,3616.9,0.2764]
[1732896603830,2.76463,3617.2,3616.8,0.8067]
[1732896603831,2.76479,3616.9,3616.8,0.8067]
[1732896604220,2.76409,3617.9,3616.8,0.8067]
[1732896604221,2.7646,3617.2,3616.8,0.8067]
[1732896604425,2.76439,3617.5,3616.9,0.2764]
[1732896604731,2.76423,3617.7,3617.2,0.2764]
[1732896604934,2.76423,3617.7,3617.4,0.2764]
[1732896605138,2.76434,3617.5,3617.4,0.2764]
[1732896605836,3.17227,3618.5,3617.6,0.2764]
[1732896606003,2.76411,3617.8,3617.6,0.2764]
[1732896606345,2.76396,3618.0,3617.6,0.2764]
[1732896606551,2.76405,3617.9,3617.8,0.2764]
[1732896607539,2.76396,3618.0,3617.5,0.8067]
[1732896607540,2.76412,3617.8,3617.6,0.2764]
[1732896608437,2.76411,3617.8,3617.6,0.2764]
[1732896608624,2.76418,3617.7,3617.6,0.2764]
[1732896609638,2.7641,3617.9,3617.2,0.2764]
[1732896609844,2.76418,3617.7,3617.6,0.2764]
[1732896610704,2.76449,3617.3,3617.2,0.2764]
[1732896612435,2.7644,3617.5,3617.2,0.2764]
[1732896612664,2.76427,3617.6,3617.2,0.2764]
[1732896612864,2.76421,3617.7,3617.2,0.2764]
[1732896613161,2.76421,3617.7,3617.1,0.7672]
[1732896613162,2.76437,3617.5,3617.4,0.2764]
[1732896613368,2.76441,3617.4,3616.1,0.2764]
[1732896613588,2.76575,3615.7,3615.5,0.8475]
[1732896613734,2.76577,3615.7,3615.6,0.6935275]
[1732896614468,2.76586,3615.5,3615.4,0.2764]
[1732896617044,2.76594,3615.4,3615.3,5.0]
[1732896620707,2.76583,3615.6,3615.3,5.8073]
[1732896620879,2.76586,3615.5,3615.4,0.58073]
[1732896621611,2.76594,3615.4,3615.3,5.8073]
[1732896622102,2.76594,3615.4,3615.3,5.0]
[1732896627306,2.76578,3615.7,3615.3,5.7781]
[1732896627722,2.76588,3615.5,3615.3,5.7781]
[1732896627904,2.76588,3615.5,3615.4,0.57781]
[1732896628595,2.76594,3615.4,3615.3,5.0]
[1732896629387,2.7658,3615.6,3615.3,5.0]
[1732896629588,2.76551,3616.0,3615.3,5.0]
[1732896629795,2.76528,3616.3,3615.7,2.7657]
[1732896629990,2.76533,3616.2,3615.8,0.33157]
[1732896630429,2.76533,3616.2,3615.6,2.76579]
[1732896630920,2.7655,3616.0,3615.5,0.55]
[1732896631097,2.76558,3615.9,3615.5,0.55]
[1732896631293,2.76536,3616.2,3615.5,0.55]
[1732896631535,2.76536,3616.2,3615.5,3.31581]
[1732896631730,2.76502,3616.7,3616.0,2.76544]
[1732896632025,2.76449,3617.3,3616.1,0.55]
[1732896632185,0.8044,3617.5,3616.1,0.55]
[1732896632387,2.76507,3616.6,3616.1,0.55]
[1732896632613,2.76512,3616.5,3616.2,0.408345]
[1732896632885,0.8044,3617.5,3616.2,0.408345]
[1732896632886,2.7652,3616.4,3616.2,0.408345]
[1732896633087,2.7652,3616.4,3616.1,0.55]
[1732896633088,2.76541,3616.1,3616.0,0.7679]
[1732896633384,2.76556,3615.9,3615.6,2.257142]
[1732896633585,2.76564,3615.8,3615.6,0.7679]
[1732896634355,0.85,3616.8,3615.7,0.02765506]
[1732896634631,5.04007178,3618.0,3615.6,0.7679]
[1732896634632,2.76524,3616.4,3615.6,3.53363]
[1732896634832,2.76524,3616.4,3615.8,3.55]
[1732896635016,2.76488,3616.8,3615.9,0.814]
[1732896635266,2.76456,3617.3,3616.2,0.814]
[1732896635581,2.76525,3616.3,3616.2,0.814]
[1732896635943,2.7651,3616.5,3616.2,0.814]
[1732896636143,2.76525,3616.3,3616.2,0.814]
[1732896636565,2.76557,3615.9,3615.5,1.3977]
[1732896636769,2.76571,3615.7,3615.6,0.93977]
[1732896637379,2.76543,3616.1,3615.6,1.21617]
[1732896637752,2.76571,3615.7,3615.6,1.21617]
[1732896639292,2.76586,3615.5,3615.4,0.2764]
[1732896640287,2.76586,3615.6,3615.4,0.2764]
[1732896640489,2.76571,3615.7,3615.4,0.2764]
[1732896640691,2.76586,3615.5,3615.4,0.2764]
[1732896643394,2.7658,3615.6,3615.4,0.2764]
[1732896643595,2.7658,3615.6,3615.4,0.8817]
[1732896643758,2.76586,3615.5,3615.4,0.8817]
[1732896644361,3.55003,3616.6,3615.4,3.64764]
[1732896644696,2.76571,3615.8,3615.4,0.8817]
[1732896644903,2.7658,3615.6,3615.5,0.94223]
[1732896645061,2.7658,3615.6,3615.5,0.2764]
[1732896645985,2.76586,3615.5,3615.4,0.2764]
[1732896648964,2.76594,3615.4,3614.9,0.2764]
[1732896649965,2.76594,3615.4,3614.7,0.2764]
[1732896650370,3.51684,3615.4,3614.7,0.2764]
[1732896651112,3.51684,3615.4,3614.6,0.2764]
[1732896653493,2.76594,3615.4,3614.6,0.2764]
[1732896653719,2.76594,3615.4,3614.9,1.0856]
[1732896653944,2.76586,3615.5,3614.9,1.0856]
[1732896653945,2.76589,3615.5,3615.3,5.5]
[1732896654104,2.76594,3615.4,3615.3,5.5]
[1732896654938,2.76594,3615.4,3615.3,6.2859]
[1732896655152,2.76594,3615.4,3615.3,5.0]
[1732896657042,2.76594,3615.4,3615.3,5.2764]
[1732896659549,3.55484,3615.4,3615.3,5.2764]
[1732896659707,3.55484,3615.4,3615.3,5.0]
[1732896660335,2.76655,3614.6,3614.5,5.4334132]
[1732896660614,3.4315409,3614.6,3614.5,5.4334132]
[1732896661346,3.43147338,3614.6,3614.5,5.4334132]
[1732896661552,2.76655,3614.6,3614.5,5.4334132]
[1732896661756,3.59555,3614.6,3614.5,2.75492822]
[1732896661942,3.59555,3614.6,3613.8,5.0]
[1732896661943,3.57589,3613.9,3613.8,5.0]
[1732896662466,4.23995583,3613.9,3613.8,5.0]
[1732896662957,8.23995583,3613.9,3613.8,5.0]
[1732896664171,7.85660228,3613.9,3613.8,5.0]
[1732896664455,4.66406583,3613.9,3613.8,6.2927]
[1732896664750,2.76672,3614.4,3613.8,6.2927]
[1732896664959,0.40856913,3614.1,3613.8,6.2927]
[1732896665124,0.25535571,3614.0,3613.8,6.2927]
[1732896665326,0.25535571,3614.3,3613.8,6.2927]
[1732896665624,0.25535571,3614.2,3613.9,0.905993]
[1732896665832,0.25535571,3614.1,3613.9,0.905993]
[1732896666032,0.25535571,3614.0,3613.9,0.905993]
[1732896667019,2.76709,3613.9,3613.8,5.0]
[1732896667317,3.43101484,3613.9,3613.8,5.0]
[1732896667833,3.43092242,3613.9,3613.8,5.0]
[1732896668345,3.43092242,3613.9,3613.8,5.7778]
[1732896668542,3.43092242,3613.9,3613.8,5.0]
[1732896669157,0.66383242,3613.9,3613.8,5.0]
[1732896669358,0.25532016,3613.9,3613.8,5.57778]
[1732896669670,3.02204016,3614.4,3613.8,5.57778]
[1732896669958,2.76687,3614.2,3613.8,5.57778]
[1732896670184,0.25532016,3614.1,3613.8,5.57778]
[1732896670533,0.25532016,3614.2,3613.8,5.57778]
[1732896670738,0.25532016,3614.1,3613.8,5.57778]
[1732896671051,2.76709,3613.9,3613.8,5.0]
[1732896671221,3.02241016,3613.9,3613.8,5.0]
[1732896671816,0.25532016,3613.9,3613.8,5.0]
[1732896672017,2.76693,3614.2,3613.8,5.0]
[1732896672018,0.25532016,3614.1,3613.8,5.0]
[1732896672324,2.76702,3614.0,3613.8,5.0]
[1732896672644,3.02241016,3613.9,3613.8,5.0]
[1732896673239,0.25532016,3613.9,3613.8,5.0]
[1732896673423,3.17545226,3614.1,3613.8,5.0]
[1732896673424,3.02240016,3614.0,3613.8,5.0]
[1732896673629,0.25532016,3613.9,3613.8,5.0]
[1732896673932,0.25532016,3614.0,3613.8,5.57778]
[1732896674248,2.76661,3614.6,3613.9,0.7511]
[1732896674449,3.0222527,3614.5,3613.9,0.7511]
[1732896674667,2.76672,3614.4,3613.9,0.7511]
[1732896674961,0.2555727,3614.3,3613.9,0.7511]
[1732896675266,0.2555727,3614.2,3613.9,1.383988]
[1732896675465,0.2555727,3614.1,3613.9,1.383988]
[1732896675630,2.76671,3614.4,3613.9,1.383988]
[1732896675830,0.2555727,3614.3,3613.9,1.383988]
[1732896676135,2.76709,3613.9,3613.8,5.0]
[1732896676340,0.2555727,3613.9,3613.8,5.0]
[1732896676551,2.76679,3614.3,3613.8,5.0]
[1732896676885,2.76694,3614.1,3613.8,5.0]
[1732896677088,0.25571616,3614.0,3613.8,5.0]
[1732896677252,2.76697,3614.1,3613.9,0.57511]
[1732896677461,0.25571616,3614.0,3613.8,5.0]
[1732896677677,2.76709,3613.9,3613.8,5.0]
[1732896677857,0.25578796,3613.9,3613.8,5.0]
[1732896678176,0.8196,3614.9,3613.8,5.0]
[1732896678177,3.02280796,3614.0,3613.8,5.0]
[1732896678341,0.25578796,3613.9,3613.8,5.0]
[1732896678845,2.76709,3613.9,3613.8,5.0]
[1732896679057,3.02287796,3613.9,3613.8,5.0]
[1732896682054,3.02287796,3613.9,3613.8,5.2764]
[1732896683991,3.02287796,3613.9,3613.8,5.0]
[1732896684698,3.7988807,3613.9,3613.8,5.0]
[1732896686211,3.0231807,3613.9,3613.8,5.0]
[1732896688065,0.2560907,3613.9,3613.8,5.0]
[1732896688569,0.2560907,3613.9,3613.8,9.09267]
[1732896688805,0.2560907,3614.5,3613.9,3.04342]
[1732896688980,0.2560907,3614.4,3614.0,3.04341]
[1732896689316,2.76649,3614.7,3614.3,0.7988]
[1732896689527,0.25670929,3614.6,3614.3,0.7988]
[1732896689669,2.76627,3615.0,3614.3,0.7988]
[1732896689670,2.76608,3615.3,3614.4,0.41187716]
[1732896690006,2.76594,3615.4,3614.4,0.384213]
[1732896690236,2.76661,3614.6,3614.3,0.7988]
[1732896690383,0.7679,3615.5,3614.3,0.7988]
[1732896690384,2.76663,3614.5,3614.3,0.7988]
[1732896690775,2.76655,3614.7,3614.3,0.7988]
[1732896691539,3.53377,3615.5,3614.4,2.76671]
[1732896691707,2.76594,3615.4,3614.6,2.76651]
[1732896692012,2.76616,3615.2,3614.5,2.76658]
[1732896692182,2.76594,3615.4,3614.5,2.76658]
[1732896692381,2.76615,3615.2,3614.4,2.76665]
[1732896692676,2.76602,3615.3,3614.5,3.123125]
[1732896692971,2.76615,3615.2,3614.6,2.76649]
[1732896693526,0.7679,3615.5,3614.3,0.7988]
[1732896693527,2.76628,3615.0,3614.3,0.7988]
[1732896693671,2.76628,3615.0,3614.4,2.76669]
[1732896693873,2.7663,3615.0,3614.3,3.56553]
[1732896694093,2.7663,3615.0,3614.3,4.226414]
[1732896694283,2.76634,3614.9,3614.3,4.226414]
[1732896694717,2.76634,3614.9,3614.3,3.56556]
[1732896695017,2.76604,3615.3,3614.4,2.7667]
[1732896695347,2.76621,3615.1,3614.5,2.76659]
[1732896696050,2.76621,3615.1,3614.6,2.76655]
[1732896696342,2.76622,3615.1,3614.3,3.56555]
[1732896696549,2.76625,3615.0,3614.3,3.922105]
[1732896696732,2.76611,3615.2,3614.3,3.922105]
[1732896697248,2.76611,3615.2,3614.5,2.76657]
[1732896697745,2.76611,3615.2,3614.6,2.76655]
[1732896698861,2.76597,3615.4,3614.6,2.76655]
[1732896699165,2.76608,3615.3,3614.6,2.76655]
[1732896699363,2.76597,3615.4,3614.7,2.76643]
[1732896700651,2.76597,3615.4,3614.8,2.7664]
[1732896701546,0.7679,3615.5,3614.8,2.7664]
[1732896701869,3.53377,3615.5,3614.8,2.76634]
[1732896702070,0.7679,3615.5,3614.9,2.76628]
[1732896702225,3.53378,3615.5,3614.9,2.76628]
[1732896702424,3.53379,3615.5,3614.8,2.76639]
[1732896702624,3.53377,3615.5,3614.9,2.76632]
[1732896704742,0.7679,3615.5,3614.7,2.76648]
[1732896705037,2.76614,3615.2,3614.6,3.04293]
[1732896705390,3.5338,3615.5,3614.6,3.04293]
[1732896705581,2.76605,3615.3,3614.7,2.76646]
[1732896705800,2.76605,3615.3,3614.6,3.04288]
[1732896706075,2.76605,3615.3,3614.7,2.76647]
[1732896706242,3.53382,3615.5,3614.8,2.76639]
[1732896706667,0.7679,3615.5,3614.9,2.76629]
[1732896706872,2.76594,3615.4,3614.8,2.76635]
[1732896707200,2.76604,3615.3,3614.8,2.76635]
[1732896707581,2.76604,3615.3,3614.6,3.7944295]
[1732896707907,2.76604,3615.3,3614.7,0.37944295]
[1732896708275,2.7661,3615.2,3614.7,0.37944295]
[1732896708703,2.76608,3615.3,3614.6,3.04294]
[1732896709015,2.76626,3615.0,3614.6,0.2764]
[1732896709306,0.7679,3615.5,3614.6,0.2764]
[1732896709469,2.7661,3615.2,3614.6,0.2764]
[1732896709670,2.76618,3615.1,3614.6,0.2764]
[1732896709997,2.76611,3615.2,3614.6,3.04293]
[1732896710403,2.76607,3615.3,3614.7,2.76647]
[1732896710611,2.76596,3615.4,3614.7,2.76647]
[1732896710913,2.76618,3615.1,3614.6,0.937238]
[1732896711123,2.7661,3615.2,3614.6,0.937238]
[1732896711306,2.7661,3615.2,3614.6,3.04295]
[1732896711617,2.76615,3615.2,3614.6,0.2764]
[1732896711779,2.76617,3615.2,3614.6,0.2764]
[1732896712618,2.76594,3615.4,3614.6,0.2764]
[1732896712777,2.76594,3615.4,3614.8,2.7664]
[1732896712976,2.76595,3615.4,3614.8,2.76639]
[1732896713277,2.76581,3615.6,3615.0,2.7662]
[1732896713619,0.7869,3615.8,3615.0,0.7927]
[1732896713920,2.76602,3615.3,3614.7,3.59826]
[1732896714310,2.76602,3615.3,3614.8,2.76639]
[1732896714826,2.76591,3615.5,3614.8,2.76639]
[1732896715031,2.76594,3615.4,3614.8,2.76639]
[1732896715542,2.76594,3615.4,3614.9,2.76631]
[1732896715829,2.76594,3615.4,3614.7,0.8318]
[1732896716027,2.76594,3615.4,3614.8,2.76636]
[1732896716436,2.76603,3615.3,3614.8,2.76636]
[1732896717542,2.76587,3615.5,3614.9,2.76631]
[1732896717709,2.76587,3615.5,3614.7,0.8318]
[1732896718808,2.76595,3615.4,3614.7,0.8318]
[1732896719045,0.8408,3616.1,3614.8,0.55]
[1732896719331,2.7656,3615.9,3615.3,2.76597]
[1732896719495,2.7656,3615.9,3615.2,2.76606]
[1732896719692,2.76549,3616.0,3615.4,3.59949]
[1732896719894,2.76521,3616.4,3615.7,2.7657]
[1732896720097,2.76518,3616.4,3615.6,2.76574]
[1732896720341,2.76527,3616.3,3615.6,2.76574]
[1732896720496,2.76538,3616.2,3615.4,4.236085]
[1732896720695,2.76527,3616.3,3615.6,2.76574]
[1732896720897,0.8061,3616.5,3615.7,2.76564]
[1732896721141,3.57121,3616.5,3615.7,2.76564]
[1732896721340,2.76518,3616.4,3615.7,2.76564]
[1732896721643,2.76518,3616.4,3615.6,3.1893595]
[1732896722956,0.8061,3616.5,3615.8,2.76563]
[1732896723099,2.76518,3616.4,3615.7,2.7657]
[1732896723434,2.76518,3616.4,3615.7,2.76565]
[1732896723601,3.57126,3616.5,3615.7,3.44451795]
[1732896723937,3.57126,3616.5,3615.8,2.76559]
[1732896724132,0.8061,3616.5,3615.7,3.44451795]
[1732896724429,3.57127,3616.5,3615.8,2.76563]
[1732896724637,2.76518,3616.4,3615.8,2.76563]
[1732896725024,0.8061,3616.5,3615.8,2.76563]
[1732896725224,2.76518,3616.4,3615.7,0.67886795]
[1732896725543,2.76478,3617.0,3615.8,1.17942375]
[1732896725743,2.76476,3617.0,3616.1,0.55]
[1732896725950,2.76515,3616.5,3615.9,0.7926]
[1732896726116,2.76534,3616.2,3615.9,0.7926]
[1732896726521,2.76518,3616.4,3615.9,0.7926]
[1732896727030,2.76527,3616.3,3615.9,0.7926]
[1732896727347,2.76538,3616.2,3615.9,0.7926]
[1732896728339,2.76539,3616.2,3615.9,0.7926]
[1732896729347,2.76541,3616.1,3615.9,0.7926]
[1732896729578,2.76525,3616.3,3615.9,0.7926]